Cogmind - Beta 11.1 @@@ ROGUE MODE // 2022.07.16 @ 01:46:45 Player: Mombamambo Result: Destroyed by Q441-n with Helical Railgun Performance ------------- Evolutions (8) 4000 Regions Visited (14) 2800 Robots Destroyed (147) 735 Value Destroyed (5540) 5540 Prototype IDs (46) 920 Alien Tech Used (0) 0 Bonus (3640) 3640 TOTAL SCORE: 17635 Bonus ------- High Alert Combat Kills 64 Follower Combat Kills 315 Entered DSFs 500 Hacked Protovariant 500 Scanned by Researcher 500 Acquired SGEMP 2000 Friendly Fire -239 Cogmind --------- Core Integrity 0/1450 Matter 300/300 Energy 98/100 System Corruption 10% Temperature Cool (0) Movement Core (50) Location -2/Research Parts ------- > --- POWER (3) -------- (None) > --- PROPULSION (5) --- (None) > --- UTILITY (9) ------ (None) > --- WEAPON (6) ------- Kinetic Spear > --- INVENTORY (5) ---- Precision Matter Filter Point Defense Array Compact Tesla Bomb Launcher Peak State ------------ > --- POWER ------------ Micro Antimatter Reactor Micro Antimatter Reactor Micro Antimatter Reactor > --- PROPULSION ------- Gravmag Array Improved Antigrav System Antigrav Array > --- UTILITY ---------- Experimental Matter Compressor Advanced Sensor Array Terrain Scan Processor Experimental Target Analyzer Armor Integrity Analyzer Experimental ECM Suite Experimental Focal Shield System Shield > --- WEAPON ----------- Quantum Rifle Advanced KE Penetrator Multirail Plasma Sword Molecular Scythe Plasma Lance > --- INVENTORY -------- Enhanced Armored Medium Treads Improved Gyrokinetic Inverter Advanced KE Penetrator [Rating: 160] Favorites ----------- Power Light Nuclear Core Engine Improved Deuterium Engine Power Core Light Nuclear Core Reactor Micro Antimatter Reactor Propulsion Improved Titanium Leg Treads Improved Medium Treads Leg Improved Titanium Leg Wheel Compact Wheel Hover Unit Gyrokinetic Inverter Flight Unit Field Propulsion Drive Utility Small Storage Unit Device Transmission Jammer Storage Small Storage Unit Processor Terrain Scan Processor Hackware Advanced Hacking Suite Protection Improved Light Armor Plating Weapon Improved Medium Laser Energy Gun Improved Medium Laser Energy Cannon Ion Cannon Ballistic Gun Flak Gun Ballistic Cannon Heavy Flak Cannon Launcher Advanced EMP Blaster Special Weapon Improved Remote Datajack Impact Weapon Hammer Slashing Weapon Chainsword Piercing Weapon Plasma Lance Build | -11 -10 -9 -8 -7 -7 -7 -6 -5 -5 -4 -4 -3 -3 -2 ------- Run | Scr Mat Mat Mat Fac Low Low Fac Fac DSF Fac Ext Res Tes Res Slots Evolved 16 | . . 2 2 2 . . 2 2 . 2 . 2 . 2 Power 2 | . . . . 1 . . . . . . . . . 1 Propulsion 3 | . . 1 . 1 . . . . . 1 . . . . Utility 7 | . . . 2 . . . 1 2 . . . 2 . . Weapon 4 | . . 1 . . . . 1 . . 1 . . . 1 Parts Attached 303 | 5 2 14 42 24 15 1 32 . 21 11 28 20 50 38 Power 45 | 1 . 1 2 4 5 . 9 . 3 1 3 2 7 7 Engine 20 | 1 . 1 2 3 1 . 5 . . . 2 2 2 1 Core 13 | . . . . 1 4 . 4 . 2 1 . . 1 . Reactor 12 | . . . . . . . . . 1 . 1 . 4 6 Propulsion 72 | 2 . 3 8 4 3 . 7 . 4 1 9 6 16 9 Treads 16 | . . . 5 . . . 2 . . . 1 1 4 3 Leg 29 | . . 3 3 4 3 . . . 3 . 3 1 5 4 Wheel 14 | 2 . . . . . . 4 . . . 2 3 3 . Hover 11 | . . . . . . . 1 . 1 1 2 . 4 2 Flight 2 | . . . . . . . . . . . 1 1 . . Utility 79 | 1 1 1 8 7 3 1 7 . 3 5 11 7 15 9 Device 43 | . 1 1 2 4 3 1 4 . 3 2 6 4 7 5 Storage 9 | 1 . . 1 2 . . . . . . 1 2 2 . Processor 5 | . . . . . . . . . . . 1 1 1 2 Hackware 5 | . . . . . . . 1 . . 3 . . 1 . Protection 17 | . . . 5 1 . . 2 . . . 3 . 4 2 Artifact . | . . . . . . . . . . . . . . . Weapon 107 | 1 1 9 24 9 4 . 9 . 11 4 5 5 12 13 Energy Gun 29 | 1 1 5 5 5 . . . . 6 . 2 . . 4 Energy Cannon 18 | . . 2 9 1 1 . 2 . . 1 1 1 . . Ballistic Gun 14 | . . 1 . . 2 . . . 4 . 1 . 1 5 Ballistic Cannon 5 | . . . . . . . 5 . . . . . . . Launcher 14 | . . 1 6 . 1 . . . . . . 1 4 1 Special Weapon 4 | . . . . . . . . . . 1 . 3 . . Impact Weapon 1 | . . . 1 . . . . . . . . . . . Slashing Weapon 15 | . . . 3 3 . . 2 . . . . . 6 1 Piercing Weapon 7 | . . . . . . . . . 1 2 1 . 1 2 Special Melee Weapon . | . . . . . . . . . . . . . . . Unidentified Prototypes 27 | . . 3 1 . . 1 1 . . . 1 2 15 3 Corrupted Parts 2 | . . . 1 . 1 . . . . . . . . . System Corruption 11 | . . . 7 . 4 . . . . . . . . . Parts Lost 105 | . . . . . 8 . 16 . 19 4 20 1 27 10 Power 23 | . . . . . 2 . 5 . 4 2 3 . 2 5 Propulsion 29 | . . . . . 2 . 5 . 4 2 6 . 9 1 Utility 26 | . . . . . 3 . . . 5 . 7 . 10 1 Weapon 27 | . . . . . 1 . 6 . 6 . 4 1 6 3 Highest Loss Streak 10 | . . . . . 4 . 9 . 9 3 10 1 8 4 To Critical Strikes 2 | . . . . . . . . . . . 1 . 1 . Average Slot Usage (%) 81 | . 96 99 98 99 99 94 66 47 67 43 66 58 82 62 Engine 5 | . 14 11 9 8 5 7 4 . . 8 1 . 3 . Core 2 | . . . . 6 8 7 3 11 6 . . . . . Reactor 1 | . . . . . . . . . 1 . 3 . 3 7 Treads 3 | . . . 16 . . . 7 . . . . . 3 3 Leg 13 | . . 33 10 29 29 30 4 . 9 . 7 2 8 1 Wheel 2 | . 28 . . . . . 6 11 4 . . 12 4 . Hover 2 | . . . . . . . . 5 1 10 9 2 1 7 Device 11 | . 12 11 9 14 15 17 6 17 25 3 10 16 14 9 Storage 6 | . 14 11 9 7 7 7 4 . . . . 9 7 3 Processor 1 | . . . . . . . . . . . 2 . 6 10 Hackware 2 | . . . . . . . 4 . . 12 14 . . 3 Protection 4 | . . . 15 7 6 . . . . . 1 . 5 . Energy Gun 7 | . 26 21 17 18 7 7 . . 9 . 3 . . 1 Energy Cannon 2 | . . 9 6 1 5 . . . . . 2 2 . . Ballistic Gun 1 | . . 1 . . 4 7 1 . 6 . 2 . . 2 Ballistic Cannon 1 | . . . . . . . 12 . . . . . . . Slashing Weapon 2 | . . . . 2 2 . 3 . . . . . 10 5 Piercing Weapon 1 | . . . . . . . . . . 3 4 . 2 3 Naked Turns 185 | . . . . . . . 93 . 15 1 7 . . 69 Heaviest Build 72 | 12 15 23 41 40 51 44 70 32 53 18 69 48 68 72 Greatest Support 145 | 26 26 30 67 80 80 65 65 28 45 23 70 48 113 145 Greatest Overweight (x) 5 | 1 . . 1 . . . 5 1 2 1 2 . 2 2 Average Overweight (x) . | . . . . . . . 1 1 . . . . . . Largest Inventory Capacity 25 | 8 8 8 8 25 8 8 8 5 5 5 5 5 15 5 Average Capacity 6 | 7 8 8 8 8 8 8 7 5 5 5 5 5 6 5 Most Carried 8 | 2 5 7 8 8 8 8 8 3 5 5 5 4 7 5 Average Carried 5 | 1 1 5 7 7 6 6 6 3 4 3 4 2 4 2 Final Capacity 8 | 8 8 8 8 8 8 8 5 5 5 5 5 5 5 5 Final Carried 8 | 2 5 6 7 8 5 8 3 3 5 5 5 4 5 3 Class Distribution -------------------- 24% | Mutant 23% | Tank 22% | Scavenger-Mutant 8% | Hacker-Mutant 7% | Scavenger-Gunner 4% | Scavenger-Tank 3% | Gunner Dominant Class ---------------- Mutant | -10/Materials Scavenger-Gunner | -9/Materials Tank | -8/Materials Tank | -7/Factory Tank | -7/Lower Caves Mutant | -7/Lower Caves Mutant | -6/Factory Mutant | -5/Factory Scavenger-Gunner | -5/DSF Hacker-Mutant | -4/Factory Hacker-Mutant | -4/Extension Infiltrator-Mutant | -3/Research Scavenger-Mutant | -3/Testing Scavenger-Mutant | -2/Research Resources | -11 -10 -9 -8 -7 -7 -7 -6 -5 -5 -4 -4 -3 -3 -2 ----------- Run | Scr Mat Mat Mat Fac Low Low Fac Fac DSF Fac Ext Res Tes Res Matter Collected 4065 | 171 99 121 542 288 228 48 988 . 438 111 309 33 450 239 Remotely 264 | . 99 61 . . . . . . . . 104 . . . Salvage Created 7898 | . 121 516 1229 416 929 173 928 . 355 113 1186 23 1104 805 Parts 349 | . 9 29 58 28 30 5 38 . 16 2 35 5 59 35 Haulers Intercepted 12 | . . 2 5 2 . . 1 . . . . . 1 1 Recyclers Shooed 2 | . . . . . . . 1 . . . 1 . . . Parts Field Recycled . | . . . . . . . . . . . . . . . Retrieved Matter . | . . . . . . . . . . . . . . . Parts Self-Destructed 24 | . . . . . 23 1 . . . . . . . . Prevented 4 | . . . . . 2 2 . . . . . . . . Kills | -11 -10 -9 -8 -7 -7 -7 -6 -5 -5 -4 -4 -3 -3 -2 ------- Run | Scr Mat Mat Mat Fac Low Low Fac Fac DSF Fac Ext Res Tes Res Combat Hostiles Destroyed 94 | . 3 11 22 4 12 3 6 . 7 1 4 . 15 6 Melee 28 | . . . 3 1 1 . 2 . . 1 3 . 15 2 Guns 32 | . 3 6 5 1 5 1 1 . 7 . . . . 3 Cannons 12 | . . 1 2 2 4 . 3 . . . . . . . AOE 19 | . . 4 11 . 2 2 . . . . . . . . Classes Destroyed 21 | . 2 4 2 3 2 . 1 . 1 1 . . 5 . Worker 11 | . . . . 1 . . 4 . . . 1 . 2 3 Builder 8 | . . . 1 1 . . 4 . . . 1 1 . . Tunneler 2 | . . . . . . . . . . 1 1 . . . Hauler 12 | . . 2 5 2 . . 1 . . . . . 1 1 Recycler 12 | . . 1 . . . . 3 . . . 6 . . 2 Mechanic 1 | . . . . . . . 1 . . . . . . . Watcher 6 | . 1 1 1 2 . . . . . . . . 1 . Swarmer 17 | . . 4 4 . 2 . 2 . 4 . . . . 1 Saboteur 1 | . . . . . . . . . . . . . 1 . Grunt 37 | . 3 5 12 . 6 2 2 . . 1 1 . 5 . Brawler 3 | . . . . . 2 1 . . . . . . . . Duelist 2 | . . . 1 . 1 . . . . . . . . . Sentry 15 | . . 2 5 2 1 . 1 . . . 3 . . 1 Specialist 3 | . . . . . . . . . 3 . . . . . Hunter 3 | . . . . 1 . . . . . . . . . 2 Programmer 9 | . . . . 1 . . 1 . . . . . 5 2 Investigator 1 | . . . . . . . . . . . . . 1 . Striker 2 | . . . . . . . . . . . . . 2 . Alpha 7 1 | . . . . . . . . . . . . . 1 . Samaritan 7 | . . . . . 7 . . . . . . . . . Knight 1 | . . . . . . . . . . . . . 1 . Best Kill Streak 7 | . 2 5 7 3 5 3 5 . 3 1 6 1 5 7 Combat Bots Only 7 | . 2 5 7 2 5 3 2 . 3 1 2 . 4 2 Max Kills in Single Turn 3 | . 1 3 3 1 2 2 1 . 1 1 1 1 1 1 Gunslinging . | . . . . . . . . . . . . . . . Exploded 3 | . . 2 3 . 1 2 . . . . . . . . Melee 1 | . . . 1 1 1 . 1 . . 1 1 . 1 1 Uniques/NPCs Destroyed . | . . . . . . . . . . . . . . . Combat | -11 -10 -9 -8 -7 -7 -7 -6 -5 -5 -4 -4 -3 -3 -2 -------- Run | Scr Mat Mat Mat Fac Low Low Fac Fac DSF Fac Ext Res Tes Res Damage Taken 20899 | . 64 200 1232 386 859 57 2008 . 3113 423 2905 126 6012 3514 Core 5252 | . 10 35 164 10 125 . 214 . 962 211 848 . 1218 1455 Absorbed by Shields 1083 | . . . . . . . . . . . 37 . 1025 21 Reduced by Siege Mode 77 | . . . . . . . . . . . . . . 77 Redirected to Shielding 51 | . . . . . . . . . . . . . 51 . Regen/Repaired (Parts) 132 | . . . . . . . 132 . . . . . . . Core Remaining (%) 58 | 100 96 91 70 . . 80 74 . 3 . 7 . 6 . Volleys Fired 217 | . 14 21 41 9 22 4 20 . 20 . 7 3 27 29 Largest 4 | . 2 3 3 3 3 3 4 . 4 . 4 1 1 3 Hottest 301 | . 100 180 172 198 165 133 212 . 230 . 301 105 105 209 Shots Fired 527 | . 28 63 112 27 61 11 49 . 64 . 25 4 27 56 Gun 347 | . 28 43 70 19 38 8 3 . 64 . 19 . . 55 Cannon 151 | . . 17 28 8 20 . 46 . . . 6 3 23 . Launcher 26 | . . 3 14 . 3 3 . . . . . . 2 1 Special 3 | . . . . . . . . . . . . 1 2 . Kinetic 115 | . . 1 . . 17 4 37 . 24 . 6 . . 26 Thermal 359 | . 28 59 93 26 41 4 7 . 34 . 19 3 23 22 Explosive 9 | . . 3 5 . . . . . . . . . 1 . Electromagnetic 40 | . . . 14 1 3 3 5 . 6 . . . . 8 Robot Hit Streak 12 | . 6 8 11 7 7 5 6 . 7 . 8 4 9 12 Robot Miss Streak 17 | . 3 3 5 1 7 8 10 . 17 . 4 1 2 6 Penetration Max 1 | . . . . . . . . . . . 1 . . 1 Secondary Targets 2 | . . . . . . . . . 2 . . . . . Max Gunslinging Chain 1 | . . . . . . . . . 1 . . . . . Shots Hit Robots 554 | . 15 38 70 28 53 6 78 . 46 7 36 3 121 53 Core Hits 284 | . 7 18 43 13 33 20 38 . 33 3 15 2 37 22 Critical Kills 4 | . . . 1 . . . . . . . . . . 3 Critical Parts Destroyed 4 | . . . . . . . . . . . . . . 4 Critical Strikes 60 | . 4 5 4 1 2 . 2 . . 2 6 . 24 10 Burn 12 | . 4 5 2 1 . . . . . . . . . . Meltdown 1 | . . . 1 . . . . . . . . . . . Destroy 7 | . . . . . . . . . . . . . . 7 Corrupt 1 | . . . . . . . . . . . . . . 1 Sever 29 | . . . 1 . 2 . 2 . . . . . 23 1 Impale 10 | . . . . . . . . . . 2 6 . 1 1 Melee Attacks 271 | . . . 11 13 15 . 42 . . 14 24 . 131 21 Impact . | . . . . . . . . . . . . . . . Slashing 202 | . . . 11 13 15 . 42 . . . . . 112 9 Piercing 69 | . . . . . . . . . . 14 24 . 19 12 Sneak Attacks 47 | . . . . 4 9 . 18 . . 2 9 . 4 1 Combat Hostiles . | . . . . . . . . . . . . . . . Follow-up Attacks 36 | . . . . . . . . . . . . . 35 1 Damage Inflicted 20412 | . 207 905 2541 900 1909 390 2771 . 887 389 1608 74 6066 1765 Guns 4546 | . 207 397 713 297 483 143 36 . 870 . 285 . . 1115 Cannons 2584 | . . 239 399 101 366 . 720 . . . 181 74 504 . Explosions 2538 | . . 269 1163 . 315 247 . . . . . . 460 84 Melee 10700 | . . . 266 502 745 . 2008 . . 389 1142 . 5082 566 Ramming 44 | . . . . . . . 7 . 17 . . . 20 . Kinetic 1694 | . . . . . 187 82 462 . 262 . 135 . . 566 Thermal 5267 | . 207 636 1088 364 724 133 228 . 570 . 331 74 504 408 Explosive 1167 | . . 269 438 . . . . . . . . . 460 . Electromagnetic 1540 | . . . 749 34 253 175 66 . 38 . . . . 225 Impact . | . . . . . . . . . . . . . . . Slashing 8119 | . . . 266 502 745 . 2008 . . . . . 4355 243 Piercing 2581 | . . . . . . . . . . 389 1142 . 727 323 Highest Corruption 29 | . . . 9 1 5 5 2 . 4 . . 2 29 10 Average Corruption 4 | . . . 7 1 1 5 1 . 2 . . 1 8 3 Corruption Purged . | . . . . . . . . . . . . . . . Corruption Blocked . | . . . . . . . . . . . . . . . Effects 99 | . . . 23 4 7 3 7 . 3 . . 1 38 13 Message Errors 17 | . . . 4 2 1 . 1 . . . . . 7 2 Matter Fused 16 | . . . 3 . 2 1 . . . . . . 5 5 Heat Flow Errors 13 | . . . 2 1 1 . 1 . 1 . . . 3 4 Energy Discharges 16 | . . . 6 . 2 . . . 1 . . . 6 1 Parts Rejected 7 | . . . 1 1 . . 1 . . . . . 3 1 Data Loss (minor) 11 | . . . 3 . . 2 1 . . . . . 5 . Data Loss (major) 7 | . . . 1 . . . . . 1 . . . 5 . Misfires 4 | . . . 2 . 1 . . . . . . 1 . . Alerts 2 | . . . . . . . 1 . . . . . 1 . Misdirections 3 | . . . . . . . . . . . . . 3 . Weapon Failures 3 | . . . 1 . . . 2 . . . . . . . Overload Shots 4 | . . . . . . . 4 . . . . . . . Overflow Damage 1413 | . . 47 84 86 176 . 469 . . 85 96 . 370 . Projectiles 42 | . . . 14 . . . 21 . . . . . 7 . Explosions 203 | . . 47 19 . 27 . . . . . . . 110 . Melee 1168 | . . . 51 86 149 . 448 . . 85 96 . 253 . Knockbacks 17 | . . . . . . . 17 . . . . . . . Impact . | . . . . . . . . . . . . . . . Kinetic 14 | . . . . . . . 14 . . . . . . . Secondary 3 | . . . . . . . 3 . . . . . . . Self-Inflicted Damage 137 | . . . 65 . . 13 3 . 8 . . . 10 38 Shots 9 | . . . 5 . . 1 . . . . . . . 3 Rammed 6 | . . . . . . . 3 . 2 . . . 1 . Targets Rammed 6 | . . . . . . . 3 . 2 . . . 1 . Kicked . | . . . . . . . . . . . . . . . Crushed . | . . . . . . . . . . . . . . . Highest Temperature 401 | . 155 322 346 270 274 117 401 . 175 . 194 27 234 229 Average Temperature 97 | . 63 96 108 102 102 70 145 . 50 . 86 14 83 75 Received Heat Transfer 3132 | . 36 99 540 96 315 27 822 . 465 54 329 18 223 108 Effects 7 | . . 1 4 . . . 2 . . . . . . . Energy Bleed 2 | . . 1 1 . . . . . . . . . . . Interference 4 | . . . 3 . . . 1 . . . . . . . Short Circuit 1 | . . . . . . . 1 . . . . . . . Siege Activations 3 | . . . . . . . . . . . . . . 3 Total Turns 43 | . . . . . . . . . . . . . . 43 Longest Duration 29 | . . . . . . . . . . . . . . 29 Robots Corrupted 1 | . . . . . . . . . . . . . . 1 Combat Hostiles 1 | . . . . . . . . . . . . . . 1 Parts Fried 3 | . . . 2 . 1 . . . . . . . . . Impact Corruptions . | . . . . . . . . . . . . . . . Robots Melted 3 | . . . 2 . . . . . . . 1 . . . Combat Hostiles 2 | . . . 1 . . . . . . . 1 . . . Parts Melted 19 | . 3 5 5 3 . . . . . . 2 . 1 . Heat Transferred 9868 | . 888 1702 2233 703 1160 161 310 . 1300 . 446 74 373 518 Parts Sabotaged 2 | . . . . . . . . . . . . . 2 . Parts Stolen . | . . . . . . . . . . . . . . . Parts Stripped . | . . . . . . . . . . . . . . . Power Chain Reactions 4 | . . . 2 . 1 1 . . . . . . . . Missiles Intercepted . | . . . . . . . . . . . . . . . Alert | -11 -10 -9 -8 -7 -7 -7 -6 -5 -5 -4 -4 -3 -3 -2 ------- Run | Scr Mat Mat Mat Fac Low Low Fac Fac DSF Fac Ext Res Tes Res Peak Influence 537 | . 165 330 537 273 . . 140 14 220 141 146 41 163 500 Initial 244 | . . 69 139 244 . . 82 14 9 84 58 . 22 65 Average 150 | . 55 183 326 187 . . 57 14 134 110 66 17 72 296 Maximum Alert Level 2 | . . 1 2 1 . . . . 1 . . . . 2 Low Security (%) 70 | 100 100 63 16 54 . . 100 100 66 100 100 100 100 14 Level 1 23 | . . 36 53 45 . . . . 33 . . . . 65 Level 2 6 | . . . 30 . . . . . . . . . . 19 Level 3 . | . . . . . . . . . . . . . . . Level 4 . | . . . . . . . . . . . . . . . Level 5 . | . . . . . . . . . . . . . . . High Security . | . . . . . . . . . . . . . . . Max Security . | . . . . . . . . . . . . . . . Squads Dispatched 33 | . 2 . 5 2 . . 7 . 4 1 . . 5 7 Investigation 6 | . 1 . 2 . . . 1 . . . . . . 2 Extermination 7 | . . . . 1 . . 1 . . 1 . . 3 1 Reinforcement 16 | . 1 . 3 1 . . 2 . 4 . . . 1 4 Assault 1 | . . . . . . . . . . . . . 1 . Garrison 3 | . . . . . . . 3 . . . . . . . Intercept . | . . . . . . . . . . . . . . . Searches Triggered . | . . . . . . . . . . . . . . . Construction Impeded 4 | . . . 2 . . . 1 . . . . . . 1 Haulers Reinforced 1 | . . . . . . . . . . . . . . 1 Active Scanning Responses . | . . . . . . . . . . . . . . . Cargo Convoy Interrupts . | . . . . . . . . . . . . . . . Stealth | -11 -10 -9 -8 -7 -7 -7 -6 -5 -5 -4 -4 -3 -3 -2 --------- Run | Scr Mat Mat Mat Fac Low Low Fac Fac DSF Fac Ext Res Tes Res Distress Signals 10 | . . 1 2 2 . . . . . 2 . . . 3 Communications Jammed 45 | . . . . 22 . . . . . . . . 23 . Distress Signals 45 | . . . . 22 . . . . . . . . 23 . Times Spotted 242 | . 7 14 36 14 19 3 17 . 27 7 21 2 38 37 Peak Tracking Total 10 | . 2 6 8 4 5 3 4 . 10 5 7 2 8 6 Tactical Retreats 38 | . . 1 3 . . . 7 . 7 1 2 . 5 12 Traps | -11 -10 -9 -8 -7 -7 -7 -6 -5 -5 -4 -4 -3 -3 -2 ------- Run | Scr Mat Mat Mat Fac Low Low Fac Fac DSF Fac Ext Res Tes Res Traps Triggered 20 | . 1 . 2 4 . . 3 . 1 . 1 2 . 6 Indirectly . | . . . . . . . . . . . . . . . Trap Hack Attempts . | . . . . . . . . . . . . . . . Triggered . | . . . . . . . . . . . . . . . Disarmed . | . . . . . . . . . . . . . . . Reprogrammed . | . . . . . . . . . . . . . . . Reused . | . . . . . . . . . . . . . . . Traps Extracted . | . . . . . . . . . . . . . . . Installed . | . . . . . . . . . . . . . . . Triggered . | . . . . . . . . . . . . . . . Machines | -11 -10 -9 -8 -7 -7 -7 -6 -5 -5 -4 -4 -3 -3 -2 ---------- Run | Scr Mat Mat Mat Fac Low Low Fac Fac DSF Fac Ext Res Tes Res Machines Disabled 9 | . . 1 2 . . . 1 . 1 . 2 . 2 . Max in Single Turn 1 | . . 1 1 . . . 1 . 1 . 1 . 1 . Machines Sabotaged . | . . . . . . . . . . . . . . . Garrisons Compromised . | . . . . . . . . . . . . . . . Overloaded Fab Kills . | . . . . . . . . . . . . . . . Hacking | -11 -10 -9 -8 -7 -7 -7 -6 -5 -5 -4 -4 -3 -3 -2 --------- Run | Scr Mat Mat Mat Fac Low Low Fac Fac DSF Fac Ext Res Tes Res Machines Accessed 56 | . 3 4 9 7 . 1 9 1 . 5 7 1 4 5 Terminals 43 | . 3 4 9 4 . . 6 1 . 3 6 . 3 4 Fabricators 3 | . . . . 1 . . 1 . . . . . . 1 Repair Stations 4 | . . . . 1 . . 1 . . 1 . . 1 . Recycling Units 2 | . . . . 1 . . . . . . 1 . . . Scanalyzers . | . . . . . . . . . . . . . . . Garrison Access 3 | . . . . . . . 1 . . 1 . 1 . . Total Hacks 127 | . 9 13 32 17 . 1 18 1 . 9 10 2 6 9 Successful 63 | . 4 7 15 6 . 1 10 1 . 6 8 1 1 3 Failed 62 | . 4 5 17 11 . . 8 . . 3 2 1 5 6 Catastrophic 10 | . . . 1 2 . . . . . . 1 1 4 1 Database Lockouts 2 | . 1 1 . . . . . . . . . . . . Manual 42 | . 6 7 10 8 . . 2 . . 4 2 1 . 2 Terminals 102 | . 9 13 32 10 . . 11 1 . 6 9 . 4 7 Fabricators 8 | . . . . 3 . . 3 . . . . . . 2 Repair Stations 7 | . . . . 2 . . 2 . . 1 . . 2 . Recycling Units 3 | . . . . 2 . . . . . . 1 . . . Scanalyzers . | . . . . . . . . . . . . . . . Garrison Access 6 | . . . . . . . 2 . . 2 . 2 . . Terminal Hacks 45 | . 3 6 13 2 . 1 6 1 . 3 7 . 1 2 Record 3 | . . . . . . . 1 . . 1 . . . 1 Part Schematic 2 | . . . 1 1 . . . . . . . . . . Robot Analysis 5 | . 2 1 2 . . . . . . . . . . . Prototype ID Bank 4 | . . . 3 . . . 1 . . . . . . . Open Door 6 | . . . . . . 1 . . . . 5 . . . Open DSF 5 | . . . . . . . 2 1 . 1 . . . 1 Emergency Access Points 1 | . . . 1 . . . . . . . . . . . Terminal Index 3 | . 1 1 1 . . . . . . . . . . . Alert Level 2 | . . . 1 1 . . . . . . . . . . Unreport Threat 1 | . . . 1 . . . . . . . . . . . Locate Traps 4 | . . 3 . . . . 1 . . . . . . . Patrol Status 2 | . . 1 . . . . . . . . 1 . . . Recall Investigation 1 | . . . 1 . . . . . . . . . . . Registered Components 1 | . . . . . . . . . . . 1 . . . Zone Layout 4 | . . . 2 . . . 1 . . 1 . . . . Protovariant Controls 1 | . . . . . . . . . . . . . 1 . Fabricator Hacks 4 | . . . . 2 . . 1 . . . . . . 1 Network Status 1 | . . . . 1 . . . . . . . . . . Load Schematic 3 | . . . . 1 . . 1 . . . . . . 1 Repair Station Hacks 4 | . . . . 1 . . 2 . . 1 . . . . Scan Component 2 | . . . . 1 . . 1 . . . . . . . Repair 1 | . . . . . . . 1 . . . . . . . Refit 1 | . . . . . . . . . . 1 . . . . Recycling Unit Hacks 1 | . . . . . . . . . . . 1 . . . Retrieve Components 1 | . . . . . . . . . . . 1 . . . Scanalyzer . | . . . . . . . . . . . . . . . Garrison Access Hacks . | . . . . . . . . . . . . . . . Unauthorized Hacks 9 | . 1 1 2 1 . . 1 . . 2 . 1 . . Terminals 7 | . 1 1 2 1 . . . . . 2 . . . . Assimilate 2 | . . . 1 . . . . . . 1 . . . . Operators 5 | . 1 1 1 1 . . . . . 1 . . . . Fabricators . | . . . . . . . . . . . . . . . Repair Stations . | . . . . . . . . . . . . . . . Recycling Units . | . . . . . . . . . . . . . . . Scanalyzers . | . . . . . . . . . . . . . . . Garrison Access 2 | . . . . . . . 1 . . . . 1 . . Watchers 2 | . . . . . . . 1 . . . . 1 . . Data Cores Recovered . | . . . . . . . . . . . . . . . Used . | . . . . . . . . . . . . . . . Hacking Detections 44 | . 3 4 9 6 . . 7 . . 4 2 1 4 4 Full Trace Events 4 | . . . 2 . . . 1 . . . . . . 1 Feedback Events 1 | . . . . . . . . . . . . . . 1 Corruption 1 | . . . . . . . . . . . . . . 1 Feedback Blocked . | . . . . . . . . . . . . . . . Robot Schematics Acquired 3 | . . . . . . . . . . . . . 3 . Robots Built . | . . . . . . . . . . . . . . . Authchips . | . . . . . . . . . . . . . . . Time . | . . . . . . . . . . . . . . . Total Robot Build Rating . | . . . . . . . . . . . . . . . Part Schematics Acquired 7 | . . . 1 1 . . . . . . . . 5 . Parts Built . | . . . . . . . . . . . . . . . Authchips . | . . . . . . . . . . . . . . . Time . | . . . . . . . . . . . . . . . Total Part Build Rating . | . . . . . . . . . . . . . . . Parts Repaired 1 | . . . . . . . 1 . . . . . . . Time 50 | . . . . . . . 50 . . . . . . . Parts Recycled . | . . . . . . . . . . . . . . . Recycled Matter . | . . . . . . . . . . . . . . . Retrieved Matter . | . . . . . . . . . . . . . . . Retrieved Components 2 | . . . . . . . . . . . 2 . . . Parts Scanalyzed . | . . . . . . . . . . . . . . . Part Schematics Acquired . | . . . . . . . . . . . . . . . Parts Damaged . | . . . . . . . . . . . . . . . Bothacking | -11 -10 -9 -8 -7 -7 -7 -6 -5 -5 -4 -4 -3 -3 -2 ------------ Run | Scr Mat Mat Mat Fac Low Low Fac Fac DSF Fac Ext Res Tes Res Used RIF Installer . | . . . . . . . . . . . . . . . Robots Hacked 2 | . . . . . . . . . . . . 1 1 . Non-combat 1 | . . . . . . . . . . . . 1 . . Combat 1 | . . . . . . . . . . . . . 1 . Robot Hacks Applied 3 | . . . . . . . . . . . . 1 2 . parse_system 2 | . . . . . . . . . . . . . 2 . no_distress 1 | . . . . . . . . . . . . 1 . . Relay Couplers Released . | . . . . . . . . . . . . . . . Fabnet Peak Effective % . | . . . . . . . . . . . . . . . Robots Rewired 2 | . . . . . 2 . . . . . . . . . Allies Hacked . | . . . . . . . . . . . . . . . Hacks Repelled . | . . . . . . . . . . . . . . . Allies | -11 -10 -9 -8 -7 -7 -7 -6 -5 -5 -4 -4 -3 -3 -2 -------- Run | Scr Mat Mat Mat Fac Low Low Fac Fac DSF Fac Ext Res Tes Res Total Allies 8 | . . . . . 2 . . . . 1 5 . . . Largest Group 3 | . . . . . 2 . . . . 1 3 . . . Highest-Rated Group 239 | . . . . . 48 . . . . 26 239 . . . Highest-Rated Ally 159 | . . . . . 32 . . . . 26 159 . . . Total Orders . | . . . . . . . . . . . . . . . Ally Attacks 49 | . . . . . 16 . . . . . 33 . . . Total Damage 1088 | . . . . . 317 . . . . . 771 . . . Kills 7 | . . . . . 4 . . . . . 3 . . . Allies Corrupted . | . . . . . . . . . . . . . . . Allies Melted . | . . . . . . . . . . . . . . . Intel | -11 -10 -9 -8 -7 -7 -7 -6 -5 -5 -4 -4 -3 -3 -2 ------- Run | Scr Mat Mat Mat Fac Low Low Fac Fac DSF Fac Ext Res Tes Res Robot Analysis Total 5 | . 2 1 2 . . . . . . . . . . . Derelict Logs Recovered 3 | . . . . . 3 . . . . . . . . . Drone Launches . | . . . . . . . . . . . . . . . Drone Recoveries . | . . . . . . . . . . . . . . . Exploration | -11 -10 -9 -8 -7 -7 -7 -6 -5 -5 -4 -4 -3 -3 -2 ------------- Run | Scr Mat Mat Mat Fac Low Low Fac Fac DSF Fac Ext Res Tes Res Turns Passed 8841 | 35 227 472 1097 953 1177 87 1341 15 358 320 698 201 1153 707 Spaces Moved 6406 | 29 191 308 566 649 815 53 1000 14 216 373 537 206 652 797 Core 451 | 4 . . . . . . 184 . 26 35 20 . . 182 Treads 463 | . . . 333 . . . 45 . . . 35 . 2 48 Legs 2909 | . . 308 233 649 815 53 171 . 135 . 231 . 307 7 Wheels 1365 | 25 191 . . . . . 591 14 55 . 37 148 304 . Hover 1205 | . . . . . . . 9 . . 338 214 45 39 560 Flight 13 | . . . . . . . . . . . . 13 . . Fastest Speed 40 | 50 90 120 120 130 122 122 50 110 50 50 40 45 85 50 Average Speed 106 | 87 90 120 143 130 125 122 109 110 109 68 99 79 109 60 Slowest Speed 320 | 100 90 120 240 130 130 122 320 110 270 131 190 93 145 270 Overloaded Moves . | . . . . . . . . . . . . . . . Propulsion Burnouts . | . . . . . . . . . . . . . . . Robots Hopped . | . . . . . . . . . . . . . . . Cave-ins Triggered 1 | . . . . . . . . . . . . . 1 . Exploration Rate (%) 32 | 3 33 22 55 15 84 5 27 1 89 9 57 6 56 27 Regions Visited 14 Branch Regions 4 Pre-discovered Areas 2 | . . . . . 2 . . . . . . . . . Known Exits Taken 1 | . . . . . . . . 1 . . . . . . Unknown Exits Taken 12 | 1 1 1 1 1 1 1 1 . . 1 1 1 1 . Scrap Searched 2 | . . . . . 2 . . . . . . . . . Spaces Dug 9 | . . . 2 . . . . . . 2 . . 4 1 Terrain Destroyed 138 | . . 34 66 . 5 6 1 . . 2 2 1 17 4 Melee 9 | . . . 2 . . . . . . 2 . . 4 1 Projectile 16 | . . . 6 . . . 1 . . . 2 1 4 2 AOE 112 | . . 34 58 . 5 6 . . . . . . 9 . Terrain Rammed . | . . . . . . . . . . . . . . . Walls Destroyed . | . . . . . . . . . . . . . . . Machines Disabled . | . . . . . . . . . . . . . . . Actions | -11 -10 -9 -8 -7 -7 -7 -6 -5 -5 -4 -4 -3 -3 -2 --------- Run | Scr Mat Mat Mat Fac Low Low Fac Fac DSF Fac Ext Res Tes Res Total 7569 | 35 217 363 745 714 900 69 1138 13 279 408 621 235 900 932 Wait 140 | . 7 6 40 3 9 1 12 . 7 . 12 . 25 18 Move 6392 | 28 190 307 565 648 814 52 999 13 215 372 536 205 651 797 Hop . | . . . . . . . . . . . . . . . Pick Up 85 | 2 4 5 16 6 5 6 9 . 4 2 4 5 10 7 Fast Attach 184 | 5 1 5 12 11 3 . 21 . 19 6 22 12 42 25 Attach 70 | . 1 4 5 4 8 1 10 . 2 5 6 8 5 11 Detach 25 | . . 2 2 1 . . 4 . . 4 2 2 2 6 Swap 49 | . . 5 25 9 4 . 1 . . . . . 3 2 Drop 107 | . . 8 28 10 4 5 9 . 2 5 3 . 15 18 Fire 217 | . 14 21 41 9 22 4 20 . 20 . 7 3 27 29 Melee 228 | . . . 11 13 15 . 42 . . 14 24 . 90 19 Ram 4 | . . . . . . . 1 . 2 . . . 1 . Kick . | . . . . . . . . . . . . . . . Crush 2 | . . . . . . . 2 . . . . . . . Escape Stasis 50 | . . . . . . . 8 . 8 . 5 . 29 . Rewire 16 | . . . . . 16 . . . . . . . . . Trap . | . . . . . . . . . . . . . . . Miscellaneous . | . . . . . . . . . . . . . . . Route ------- -11/Scrapyard -10/Materials -9/Materials -8/Materials -7/Factory -7/Lower Caves -7/Lower Caves -6/Factory -5/Factory (discovered 2 exits: Upp / DSF) -5/DSF -4/Factory -4/Extension (discovered 2 exits: *Res / [*Cet]) -3/Research -3/Testing -2/Research History --------- Turn | Location | Event 12 | -11/Scrapyard | Discovered new exit (range 16) 36 | -11/Scrapyard | Entered Materials 151 | -10/Materials | Discovered new exit (range 6) 212 | -10/Materials | Central database locked down 263 | -10/Materials | Entered another Materials area 263 | -9/Materials | Evolved 2 slots: Propulsion x1, Weapon x1 647 | -9/Materials | Central database locked down 660 | -9/Materials | Discovered new exit (range 7) 664 | -9/Materials | Build established: Scavenger-Gunner 735 | -9/Materials | Entered another Materials area 735 | -8/Materials | Evolved 2 slots: Utility x2 916 | -8/Materials | Destroyed 7 combat bots 1812 | -8/Materials | Discovered new exit (range 16) 1832 | -8/Materials | Entered Factory 1832 | -7/Factory | Evolved 2 slots: Power x1, Propulsion x1 2355 | -7/Factory | Build established: Tank 2757 | -7/Factory | Discovered new exit (range 11) 2785 | -7/Factory | Entered Lower Caves 3040 | -7/Lower Caves | Learned location of Zion (-6) 3062 | -7/Lower Caves | Learned location of Extension (-4) 3176 | -7/Lower Caves | Lost 3 parts (2p1n) 3309 | -7/Lower Caves | Attracted the attention of an 0b10 outpost 3803 | -7/Lower Caves | Attracted the attention of an 0b10 checkpoint 3841 | -7/Lower Caves | Lost 4 parts (1n2u1w) 3923 | -7/Lower Caves | Discovered new exit (range 5) 3962 | -7/Lower Caves | Entered another Lower Caves area 3986 | -7/Lower Caves | Discovered new exit (range 15) 4001 | -7/Lower Caves | Found Prototype Device 4018 | -7/Lower Caves | Identified Heart of Steel 4049 | -7/Lower Caves | Entered Factory 4049 | -6/Factory | Evolved 2 slots: Utility x1, Weapon x1 4152 | -6/Factory | Identified exit to DSF 4183 | -6/Factory | Garrison activated, responded to threat 4268 | -6/Factory | Build established: Mutant 4371 | -6/Factory | Lost 9 parts (3p4n2w) 5061 | -6/Factory | Spotted B-75 Beast 5121 | -6/Factory | Repaired Imp. Medium Treads? 5169 | -6/Factory | Released all parts (8) 5237 | -6/Factory | Discovered new exit (range 14) 5390 | -6/Factory | Entered another Factory area 5390 | -5/Factory | Evolved 2 slots: Utility x2 5391 | -5/Factory | Identified exit to Upper Caves 5404 | -5/Factory | Identified exit to DSF 5405 | -5/Factory | Entered DSF 5436 | -5/DSF | Additional patrols routed to DSF 5697 | -5/DSF | Lost 7 parts (1p2n4w) 5746 | -5/DSF | Core integrity fell below 50% 5756 | -5/DSF | Discovered new exit (range 14) 5759 | -5/DSF | Core integrity fell below 20% 5763 | -5/DSF | Entered Factory 5763 | -4/Factory | Evolved 2 slots: Propulsion x1, Weapon x1 5779 | -4/Factory | Lost 9 parts (2p2n4u1w) 5894 | -4/Factory | Spotted B-86 Titan 6034 | -4/Factory | Build established: Hacker-Mutant 6055 | -4/Factory | Found Unknown Device 6055 | -4/Factory | Identified Quantum Capacitor 6058 | -4/Factory | Lost 3 parts (1p2n) 6065 | -4/Factory | Discovered new exit (range 10) 6083 | -4/Factory | Entered Extension 6106 | -4/Extension | Rescued a captive Derelict 6143 | -4/Extension | Found Imp. Powered Armor 6231 | -4/Extension | Rescued a captive Derelict 6240 | -4/Extension | Lost 3 parts (1n2u) 6292 | -4/Extension | Rescued a captive Derelict 6472 | -4/Extension | Rescued a captive Derelict 6488 | -4/Extension | Rescued A7 6509 | -4/Extension | Spotted B-86 Titan 6521 | -4/Extension | Spotted B-86 Titan 6611 | -4/Extension | Lost 6 parts (2p1n2u1w) 6733 | -4/Extension | Disrupted transfer network 6763 | -4/Extension | Core integrity fell below 50% 6771 | -4/Extension | Released all parts (7) 6773 | -4/Extension | Discovered new exit (range 16) 6773 | -4/Extension | Discovered new exit (range 16) 6774 | -4/Extension | Core integrity fell below 20% 6781 | -4/Extension | Entered Research 6781 | -3/Research | Evolved 2 slots: Utility x2 6795 | -3/Research | Lost 10 parts (1p3n3u3w) 6839 | -3/Research | Found Antimissile System 6872 | -3/Research | Found Fusion Bomb Launcher 6963 | -3/Research | Discovered new exit (range 14) 6982 | -3/Research | Entered Testing 6991 | -3/Testing | Protovariant out of control (PL-DF2FZSZW0O) 6991 | -3/Testing | Unleashed a protovariant (PL-DF2FZSZW0O) 7026 | -3/Testing | Found Prototype Launcher 7026 | -3/Testing | Identified Z-bomb Delivery System 7054 | -3/Testing | Spotted Investigator 7055 | -3/Testing | Scanned by Researcher 7080 | -3/Testing | Spotted PL-DF2FZSZW0O 7107 | -3/Testing | Destroyed Investigator 7155 | -3/Testing | Found Prototype Launcher 7155 | -3/Testing | Identified Containment Facilitator 7202 | -3/Testing | Lost 4 parts (2u2w) 7259 | -3/Testing | Spotted Striker 7261 | -3/Testing | Spotted Striker 7312 | -3/Testing | Found Nanosword 7326 | -3/Testing | Destroyed Striker 7346 | -3/Testing | Core integrity fell below 50% 7361 | -3/Testing | Destroyed Striker 7373 | -3/Testing | Lost 8 parts (1p3n2u2w) 7391 | -3/Testing | Found Prototype Slashing Weapon 7391 | -3/Testing | Identified Molecular Scythe 7463 | -3/Testing | Spotted Alpha 7 7525 | -3/Testing | Destroyed Alpha 7 7529 | -3/Testing | Found Prototype Processor 7529 | -3/Testing | Identified Exp. Target Analyzer 7535 | -3/Testing | Found Prototype Device 7535 | -3/Testing | Identified Exp. ECM Suite 7545 | -3/Testing | Found Prototype Ballistic Gun 7545 | -3/Testing | Identified Multirail 7555 | -3/Testing | Stole the SGEMP Prototype 7625 | -3/Testing | Build established: Scavenger-Mutant 7767 | -3/Testing | Found Prototype Device 7767 | -3/Testing | Identified AEGIS Remote Shield 7788 | -3/Testing | System corruption reached 10% 7838 | -3/Testing | Crushed by falling debris 7869 | -3/Testing | Lost 3 parts (1n2u) 7919 | -3/Testing | Found Prototype Device 7919 | -3/Testing | Identified Exp. Focal Shield 7969 | -3/Testing | Spotted Alpha 7 7973 | -3/Testing | Spotted EY-BRX(K) 7973 | -3/Testing | Spotted DN-MEQ(K) 7973 | -3/Testing | Spotted HN-AE9(K) 8072 | -3/Testing | Core integrity fell below 20% 8074 | -3/Testing | Destroyed HN-AE9(K) 8127 | -3/Testing | Lost 6 parts (3n1u2w) 8133 | -3/Testing | Discovered new exit (range 3) 8135 | -3/Testing | Entered Research 8135 | -2/Research | Evolved 2 slots: Power x1, Weapon x1 8251 | -2/Research | Spotted B-90 Cyclops 8424 | -2/Research | Spotted B-90 Cyclops 8448 | -2/Research | Spotted B-90 Cyclops 8525 | -2/Research | Lost 3 parts (1p1u1w) 8595 | -2/Research | Found Gamma Bomb Array 8717 | -2/Research | Released all parts (13) 8734 | -2/Research | Core integrity fell below 50% 8736 | -2/Research | Lost 4 parts (1p1n2w) 8805 | -2/Research | Found Prototype Launcher 8832 | -2/Research | System corruption reached 10% 8839 | -2/Research | Core integrity fell below 20% 8842 | -2/Research | Destroyed by Q441-n with Helical Railgun Last Messages --------------- 08771_ Acquired Prototype Device. 08771_ Identified Prc. Matter Filter. 08774_ Door malfunctions. 08777_ Meson Extractor disabled. 08787_ Acquired Point Defense Array. 08800_ System corrupted: Heat flow error (+240). 08801_ Acquired Prototype Piercing Weapon. 08801_ Identified Kinetic Spear. 08802_ Dropped Point Defense Array. 08803_ Acquired Point Defense Array. 08805_ Acquired Prototype Launcher. 08816_ System corrupted: Matter fused (-8). 08834_ P-80 Master destroyed. 08836_ Acquired 43 matter. 08840_ Triggered Fusion Bomb Trap. 08840_ An explosion rips through the floor. 08840_ Slug penetrates Earth. 08840_ Slug penetrates Wall. 08840_ Knocked back. 08842_ Penetrated by Slug. Map ----- +----------------------------------------------------+ | ############### # # | | ! #?????????????# # # | | #######????########?# # # | | ????????????# ?# # # | | ????????????# # # # | | ????????????# # # # | | ????????????# + ######## | | ????????????# # # # | | ????????????# # # !# | | ????????????# ?# # # | | ????????????# ?# # # | | ????????????# ??# QQ # # | | ????????????########?# Y# # | | ??????????????###### # !+% # | | ?????????????? # #! # | | ????????????? ? # | | ????????????# """ # | | ????????????# "T" # | | ????????????# # | | ???????????+ # # | | ##??????????# Y ###### | | ????????????# % ##???? | | ????????????# * # #???? | | ????????????######### # #???? | | ????????????????????## ####???? | | ?????????????????????# @#??????? | | ?????????????????????# #??????? | | ?????????????????????# #??????? | | ?????????????????????# #??????? | | ???????????????????? ; #??????? | | ??????????????????? ; #??????? | | ??????????????????" # #??????? | | ?????????????????"" # ;??????? | | ?????????????????"" ?# #??????? | | ????????????????? ?+ ???????? | | ????????????????? ??# ???????? | | ????????????????##???# ???????? | | ?????????????????????# ???????? | | ?????????????????????# ???????? | | ?????????????????????#k ???????? | | ??????????????????????? ???????? | | ?????????????????????????????????? | | ?????????????????????????????????? | | ?????????????????????????????????? | | ?????????????????????????????????? | | ?????????????????????????????????? | | ?????????????????????????????????? | | ?????????????????????????????????? | | ?????????????????????????????????? | | ?????????????????????????????????? | +----------------------------------------------------+ Best States ------------- Heat Dissipation 100 Coolant Potential 65 Energy Generation 59 Energy Capacity 530 Matter Stores 1240 Matter Capacity 1300 Sight Range 16 Robot Scan Range 16 Terrain Scan Range 14 Terrain Scan Density 285 ECM Strength 4 Jamming Range 14 Power Amplification 20 Armor Coverage 525 Resistance: KI 30 Resistance: EX 25 Resistance: EM 15 Propulsion Shielding 33 Point Defense Rating 240 Evasion (%) 60 Target Analysis 10 Armor Integrity Analysis 30 Recoil Reduction 7 Offensive Hacking 28 Defensive Hacking 10 Item Schematics ----------------- VSS Leg | -8/Materials | Hacked Imp. Titanium Leg | -7/Factory | Hacked Thunder Hammer | -3/Testing | Archive Diametric Drive | -3/Testing | Archive Hdn. Centrium Wheel | -3/Testing | Archive Com. Mass Driver | -3/Testing | Archive Hvy. Proton Missile Launcher | -3/Testing | Archive Robot Schematics ------------------ G-67 Veteran | -3/Testing | Archive C-55 Analyst | -3/Testing | Archive A-02 Transporter | -3/Testing | Archive Fabricated ------------ Nothing Alien Tech Used ----------------- None Achievements -------------- Hard Hitter Prolific Hacker Streaker Challenges ------------ None Game ------ Seed MicroMicroScythe Manual? 0 Play Time 02:55:07 Cumulative 40.1 hours Start 2022.07.15 @ 03:02:50 End 2022.07.16 @ 01:46:45 Sessions 9 Manual Loads 0 Difficulty Rogue Special Mode None Game No. 23 Rogue 23 Adventurer 0 Explorer 0 Win Type - Total 0 Types 0/0/0/0/0/0/0/0/0 Lore% 30 Gallery% 45 Achievement% 33 Wizard Run 0 Options --------- ASCII 0 Keyboard 0 Movement Mouse Keybinds 0 Fullscreen 1 Font 18/SmallcapsGlow Map View 76x50 Tactical HUD 1 Map Filters NONE Filters NONE Steam 1 RUN: 1f3d366f-d715-4569-aeae-8329bbd47cae